[Event "GER-ch Youth U12 2019"]
[Site "Willingen"]
[Date "2019.06.09"]
[Round "1.10"]
[White "Winkler, Yonathan"]
[Black "Kempe, Caius Emilian"]
[Result "1/2-1/2"]
[ECO "B34"]
[WhiteElo "1536"]
[BlackElo "1766"]
[Annotator "NA"]
[PlyCount "72"]
[EventDate "2019.06.07"]
[EventType "swiss"]
[EventRounds "9"]
[EventCountry "GER"]
[SourceTitle "playchess.com"]
[Source "ChessBase"]
[SourceQuality "1"]
[TimeControl "40/4500+30:900+30"]

1. e4 {[%emt 0:00:00]} c5 {[%emt 0:00:00]} 2. Nf3 {[%emt 0:00:00]} Nc6 {[%emt 0:00:00]} 3. d4 {[%emt 0:00:00]} cxd4 {[%emt 0:00:00]} 4. Nxd4 {[%emt 0:00:00]} g6 {[%emt 0:00:00]} 5. Nxc6 {[%emt 0:00:00]} bxc6 {[%emt 0:00:00]} 6. Qd4 {[%emt 0:00:00]} Nf6 {[%emt 0:00:00]} 7. e5 {[%emt 0:03:08]} Nd5 {[%emt 0:00:00]} 8. c4 {[%emt 0:01:43]} Nb4 {[%emt 0:00:00]} 9. Qc3 {[%emt 0:03:28]} c5 {[%emt 0:00:00]} 10. e6 {[%emt 0:07:48]} f6 {[%emt 0:00:00]} 11. a3 {[%emt 0:01:56]} Nc6 {[%emt 0:00:00]} 12. exd7+ Qxd7 {[%emt 0:00:46]} 13. Bd3 {[%emt 0:02:19]} Bg7 {[%emt 0:01:14]} 14. O-O {[%emt 0:02:34]} O-O {[%emt 0:00:21]} 15. Be4 {[%emt 0:11:39]} f5 {[%emt 0:01:25]} 16. Bd5+ {[%emt 0:02:00]} e6 {[%emt 0:02:03]} 17. Bxc6 {[%emt 0:00:37]} Qxc6 {[%emt 0:00:14]} 18. Qc2 {[%emt 0:01:27]} Bb7 {[%emt 0:00:25]} 19. f3 {[%emt 0:00:23]} Rad8 {[%emt 0:04:02]} 20. Bd2 {[%emt 0:01:49]} Bd4+ {[%emt 0:01:20]} 21. Kh1 {[%emt 0:00:26]} Rd7 {[%emt 0:01:13]} 22. Nc3 {[%emt 0:02:26]} Rfd8 {[%emt 0:03:01]} 23. Bg5 {[%emt 0:01:00]} Re8 {[%emt 0:03:55]} 24. Rfe1 {[%emt 0:01:14]} a6 {[%emt 0:02:07]} 25. Rad1 {[%emt 0:05:50]} e5 {[%emt 0:08:23]} 26. Nd5 {[%emt 0:01:24]} Rxd5 {[%emt 0:05:25]} 27. cxd5 {[%emt 0:00:29]} Qxd5 {[%emt 0:00:28]} 28. Be3 {[%emt 0:04:29]} Rc8 {[%emt 0:02:27]} 29. Qf2 {[%emt 0:01:32]} f4 {[%emt 0:06:11]} 30. Bxd4 {[%emt 0:00:27]} cxd4 {[%emt 0:00:18]} 31. Qe2 {[%emt 0:00:46]} Re8 {[%emt 0:03:02]} 32. Qf2 {[%emt 0:00:24]} d3 {[%emt 0:06:10]} 33. Qd2 {[%emt 0:01:25]} e4 {[%emt 0:04:53]} 34. fxe4 {[%emt 0:00:21]} Rxe4 {[%emt 0:00:06]} 35. Rxe4 {[%emt 0:00:21]} Qxe4 {[%emt 0:00:08]} 36. Re1 {[%emt 0:00:36]} Qd5 {[%emt 0:00:14] normal} 1/2-1/2

[Event "GER-ch Youth U12 2019"]
[Site "Willingen"]
[Date "2019.06.09"]
[Round "1.11"]
[White "Kluehs, Gustaf"]
[Black "Morczynski, Joachim"]
[Result "1-0"]
[ECO "A49"]
[WhiteElo "1705"]
[BlackElo "1733"]
[Annotator "NA"]
[PlyCount "71"]
[EventDate "2019.06.07"]
[EventType "swiss"]
[EventRounds "9"]
[EventCountry "GER"]
[SourceTitle "playchess.com"]
[Source "ChessBase"]
[SourceQuality "1"]
[TimeControl "40/4500+30:900+30"]

1. d4 {[%emt 0:00:00]} Nf6 {[%emt 0:00:00]} 2. Nf3 {[%emt 0:00:00]} g6 {[%emt 0:00:00]} 3. g3 {[%emt 0:00:00]} Bg7 {[%emt 0:00:00]} 4. Bg2 {[%emt 0:00:00]} d6 {[%emt 0:00:00]} 5. O-O {[%emt 0:00:00]} O-O {[%emt 0:00:00]} 6. b3 {[%emt 0:00:00]} c5 {[%emt 0:00:00]} 7. e3 {[%emt 0:00:00]} cxd4 {[%emt 0:04:30]} 8. exd4 {[%emt 0:00:00]} Bf5 {[%emt 0:02:55]} 9. Nh4 {[%emt 0:00:00]} Bg4 {[%emt 0:04:28]} 10. Qd2 {[%emt 0:00:00]} Nc6 {[%emt 0:05:50]} 11. Bb2 {[%emt 0:02:46]} Rc8 {[%emt 0:08:33]} 12. h3 {[%emt 0:06:17]} Bd7 {[%emt 0:00:57]} 13. d5 {[%emt 0:02:20]} Nb8 {[%emt 0:00:56]} 14. c4 {[%emt 0:01:23]} Na6 {[%emt 0:01:40]} 15. Nf3 {[%emt 0:01:36]} Nc5 {[%emt 0:03:05]} 16. Nc3 {[%emt 0:02:38]} Nfe4 {[%emt 0:04:08]} 17. Nxe4 {[%emt 0:01:48]} Nxe4 {[%emt 0:00:16]} 18. Qe2 {[%emt 0:01:14]} Bxb2 {[%emt 0:00:39]} 19. Qxb2 {[%emt 0:00:17]} Qb6 {[%emt 0:01:10]} 20. Qd4 {[%emt 0:03:26]} Qxd4 {[%emt 0:00:13]} 21. Nxd4 {[%emt 0:00:06]} Nf6 {[%emt 0:01:09]} 22. Rfe1 {[%emt 0:01:48]} Rfe8 {[%emt 0:00:27]} 23. Rac1 {[%emt 0:01:16]} Kf8 {[%emt 0:03:13]} 24. Kh2 {[%emt 0:00:55]} Rc7 {[%emt 0:03:22]} 25. Rc2 {[%emt 0:02:32]} b5 {[%emt 0:01:40]} 26. Nc6 {[%emt 0:01:22]} Bxc6 {[%emt 0:00:46]} 27. cxb5 {[%emt 0:01:28]} Rb7 {[%emt 0:09:17]} 28. bxc6 {[%emt 0:00:47]} Rb5 {[%emt 0:00:24]} 29. Rd1 {[%emt 0:00:53]} Rc8 {[%emt 0:04:44]} 30. Rc4 {[%emt 0:02:26]} e6 {[%emt 0:04:09]} 31. dxe6 {[%emt 0:00:40]} d5 {[%emt 0:00:35]} 32. Rf4 {[%emt 0:01:21]} Ke7 {[%emt 0:00:56]} 33. exf7 {[%emt 0:01:13]} Rxc6 {[%emt 0:02:46] normal} 34. Rxd5 {[%emt 0:02:11]} Rxd5 {[%emt 0:00:50]} 35. Bxd5 {[%emt 0:00:47] normal} Rc8 {[%emt 0:01:56]} 36. Bc4 1-0

[Event "GER-ch Youth U12 2019"]
[Site "Willingen"]
[Date "2019.06.09"]
[Round "1.13"]
[White "Breitkopf-Lazar, Patrick-Robert"]
[Black "Weyerer, Noah"]
[Result "1-0"]
[ECO "B01"]
[WhiteElo "1659"]
[BlackElo "1320"]
[Annotator "NA"]
[PlyCount "105"]
[EventDate "2019.06.07"]
[EventType "swiss"]
[EventRounds "9"]
[EventCountry "GER"]
[SourceTitle "playchess.com"]
[Source "ChessBase"]
[SourceQuality "1"]
[TimeControl "40/4500+30:900+30"]

1. e4 {[%emt 0:00:00]} d5 {[%emt 0:00:00]} 2. exd5 {[%emt 0:00:00]} Qxd5 {[%emt 0:00:00]} 3. Nc3 {[%emt 0:00:00]} Qd6 {[%emt 0:00:00]} 4. d4 {[%emt 0:00:00]} Nf6 {[%emt 0:00:00]} 5. Nge2 {[%emt 0:00:00]} c6 {[%emt 0:00:00]} 6. Bf4 {[%emt 0:00:00]} Qd8 {[%emt 0:00:00]} 7. Ng3 {[%emt 0:00:00]} Be6 {[%emt 0:00:00]} 8. Qd2 {[%emt 0:01:57]} Nbd7 {[%emt 0:00:00]} 9. Be2 {[%emt 0:12:59]} Nb6 {[%emt 0:00:00]} 10. b3 {[%emt 0:04:05]} Nbd5 {[%emt 0:00:50]} 11. Rd1 {[%emt 0:03:23]} Nxc3 {[%emt 0:01:48]} 12. Qxc3 {[%emt 0:00:07]} Nd5 {[%emt 0:02:12]} 13. Qd2 {[%emt 0:01:13]} Nxf4 {[%emt 0:00:40]} 14. Qxf4 {[%emt 0:00:06]} Qa5+ {[%emt 0:01:36]} 15. Qd2 {[%emt 0:01:16]} Qxd2+ {[%emt 0:03:06]} 16. Kxd2 {[%emt 0:05:38]} O-O-O {[%emt 0:01:58]} 17. Ke3 {[%emt 0:00:06]} g6 {[%emt 0:01:37]} 18. Ne4 {[%emt 0:00:40]} Bf5 {[%emt 0:03:38]} 19. f3 {[%emt 0:11:17]} Bg7 {[%emt 0:03:41]} 20. c3 {[%emt 0:00:57]} e5 {[%emt 0:03:39]} 21. dxe5 {[%emt 0:02:19]} Bxe5 {[%emt 0:02:49]} 22. Ng5 {[%emt 0:10:03]} Bxc3 {[%emt 0:07:28]} 23. Nxf7 {[%emt 0:00:27]} Rhe8+ {[%emt 0:02:43]} 24. Kf2 {[%emt 0:01:00]} Bd4+ {[%emt 0:03:42]} 25. Kg3 {[%emt 0:01:09]} Rd7 {[%emt 0:10:43]} 26. Rhe1 {[%emt 0:04:22]} Rxf7 {[%emt 0:02:35]} 27. Rxd4 {[%emt 0:00:19]} Rfe7 {[%emt 0:01:43]} 28. Kf2 {[%emt 0:00:39]} Kc7 {[%emt 0:01:25]} 29. Rdd1 {[%emt 0:01:37]} b5 {[%emt 0:02:46]} 30. g4 {[%emt 0:00:11]} Be6 {[%emt 0:04:26]} 31. Bd3 {[%emt 0:01:26]} Bd5 {[%emt 0:02:36]} 32. Rxe7+ {[%emt 0:00:46]} Rxe7 {[%emt 0:00:10]} 33. Bxb5 {[%emt 0:00:12]} Bxf3 {[%emt 0:01:08]} 34. Kxf3 {[%emt 0:02:14]} cxb5 {[%emt 0:00:09]} 35. Rd2 {[%emt 0:02:06]} Kc6 {[%emt 0:02:58]} 36. Kf4 {[%emt 0:00:47]} Kc7 {[%emt 0:03:39]} 37. Kg5 {[%emt 0:01:27]} Re3 {[%emt 0:06:24]} 38. h4 {[%emt 0:09:16]} Re4 {[%emt 0:05:29]} 39. Rf2 {[%emt 0:03:34]} Re7 {[%emt 0:01:42]} 40. Rf4 {[%emt 0:03:21]} Kd6 {[%emt 0:03:30]} 41. Kf6 {[%emt 0:17:53]} Rb7 {[%emt 0:00:00]} 42. Rd4+ {[%emt 0:00:00]} Kc5 {[%emt 0:00:00]} 43. Re4 {[%emt 0:00:00]} a5 {[%emt 0:00:00]} 44. g5 {[%emt 0:00:00]} Rb6+ {[%emt 0:01:09]} 45. Kg7 {[%emt 0:00:00]} Rb7+ {[%emt 0:00:44]} 46. Kg8 {[%emt 0:00:00]} Rd7 {[%emt 0:13:41]} 47. Rf4 {[%emt 0:00:00]} b4 {[%emt 0:00:52]} 48. Rf2 {[%emt 0:00:00]} Re7 {[%emt 0:02:10]} 49. Rf7 {[%emt 0:00:00]} Re2 {[%emt 0:01:04]} 50. Kxh7 {[%emt 0:00:00]} Rxa2 {[%emt 0:00:12]} 51. Kxg6 {[%emt 0:00:00]} Rb2 {[%emt 0:00:54]} 52. h5 {[%emt 0:00:00]} Rxb3 {[%emt 0:00:12]} 53. h6 {[%emt 0:00:00] normal} 1-0

[Event "GER-ch Youth U12 2019"]
[Site "Willingen"]
[Date "2019.06.09"]
[Round "1.14"]
[White "Brunner, Alexander"]
[Black "Fuchs, Florian"]
[Result "0-1"]
[ECO "A45"]
[WhiteElo "1991"]
[BlackElo "2235"]
[Annotator "NA"]
[PlyCount "32"]
[EventDate "2019.06.07"]
[EventType "swiss"]
[EventRounds "9"]
[EventCountry "GER"]
[SourceTitle "playchess.com"]
[Source "ChessBase"]
[SourceQuality "1"]
[TimeControl "40/4500+30:900+30"]

1. d4 {[%emt 0:00:00]} Nf6 {[%emt 0:00:00]} 2. Nc3 {[%emt 0:00:00]} d5 {[%emt 0:00:00]} 3. Bf4 {[%emt 0:00:00]} Bf5 {[%emt 0:00:00]} 4. e3 {[%emt 0:00:00]} e6 {[%emt 0:00:00]} 5. f3 {[%emt 0:00:00]} a6 {[%emt 0:00:00]} 6. g4 {[%emt 0:00:00]} Bg6 {[%emt 0:00:00]} 7. h4 {[%emt 0:00:00]} h6 {[%emt 0:00:00]} 8. Bd3 {[%emt 0:00:00]} Bxd3 {[%emt 0:00:00]} 9. Qxd3 {[%emt 0:00:00]} c5 {[%emt 0:00:00]} 10. Nge2 {[%emt 0:22:22]} Nc6 {[%emt 0:00:00]} 11. Kf2 {[%emt 0:08:19]} Be7 {[%emt 0:04:50]} 12. Ng3 {[%emt 0:04:05]} cxd4 {[%emt 0:26:15]} 13. exd4 {[%emt 0:00:46]} Nd7 {[%emt 0:04:07]} 14. Qe3 {[%emt 0:20:45]} Nxd4 {[%emt 0:03:20]} 15. Qd2 {[%emt 0:07:43]} Nc6 {[%emt 0:02:33]} 16. Be3 {[%emt 0:06:35] normal} d4 {[%emt 0:01:50] normal} 0-1

[Event "GER-ch Youth U12 2019"]
[Site "Willingen"]
[Date "2019.06.09"]
[Round "1.15"]
[White "Guo, Philipp Ziming"]
[Black "Hoettler, Alexander Walter"]
[Result "1-0"]
[ECO "B22"]
[WhiteElo "1674"]
[BlackElo "1802"]
[Annotator "NA"]
[PlyCount "57"]
[EventDate "2019.06.07"]
[EventType "swiss"]
[EventRounds "9"]
[EventCountry "GER"]
[SourceTitle "playchess.com"]
[Source "ChessBase"]
[SourceQuality "1"]
[TimeControl "40/4500+30:900+30"]

1. e4 {[%emt 0:00:00]} c5 {[%emt 0:00:00]} 2. c3 {[%emt 0:00:00]} Nf6 {[%emt 0:00:00]} 3. e5 {[%emt 0:00:00]} Nd5 {[%emt 0:00:00]} 4. d4 {[%emt 0:00:00]} cxd4 {[%emt 0:00:00]} 5. cxd4 {[%emt 0:00:00]} e6 {[%emt 0:00:00]} 6. Nf3 {[%emt 0:00:00]} d6 {[%emt 0:00:00]} 7. Nc3 {[%emt 0:00:00]} Nxc3 {[%emt 0:00:00]} 8. bxc3 {[%emt 0:00:00]} Be7 {[%emt 0:00:00]} 9. Bd3 {[%emt 0:00:11]} Nc6 {[%emt 0:00:00]} 10. Bf4 {[%emt 0:09:01]} d5 {[%emt 0:04:53]} 11. Qc2 {[%emt 0:05:12]} h6 {[%emt 0:01:35]} 12. h3 {[%emt 0:02:58]} Bd7 {[%emt 0:06:02]} 13. Qb2 {[%emt 0:08:00]} Rb8 {[%emt 0:06:52]} 14. O-O {[%emt 0:03:26]} g5 {[%emt 0:06:17]} 15. Be3 {[%emt 0:03:45]} Na5 {[%emt 0:19:51]} 16. Qe2 {[%emt 0:12:03]} a6 {[%emt 0:04:02]} 17. Nd2 {[%emt 0:08:10]} b5 {[%emt 0:12:54]} 18. f4 {[%emt 0:06:48]} Nc4 {[%emt 0:05:22]} 19. f5 {[%emt 0:04:33]} Rc8 {[%emt 0:06:19]} 20. fxe6 {[%emt 0:01:51]} Bxe6 {[%emt 0:00:24]} 21. Nxc4 {[%emt 0:00:50]} bxc4 {[%emt 0:01:03]} 22. Bf5 {[%emt 0:04:52]} Qd7 {[%emt 0:01:31]} 23. Qc2 {[%emt 0:03:52]} Bxf5 {[%emt 0:06:35]} 24. Rxf5 {[%emt 0:00:38]} O-O {[%emt 0:02:35]} 25. Raf1 {[%emt 0:02:05]} Qe6 {[%emt 0:00:28]} 26. Rf6 {[%emt 0:02:39]} Bxf6 {[%emt 0:00:37]} 27. Rxf6 {[%emt 0:00:03]} Qe7 {[%emt 0:00:34]} 28. Rxh6 {[%emt 0:06:20]} f5 {[%emt 0:00:35]} 29. Rg6+ {[%emt 0:00:43] normal} 1-0

[Event "GER-ch Youth U12 2019"]
[Site "Willingen"]
[Date "2019.06.09"]
[Round "2.1"]
[White "Deuer, Marius"]
[Black "Bungarten, Jona"]
[Result "0-1"]
[ECO "C60"]
[WhiteElo "1961"]
[BlackElo "1642"]
[Annotator "NA"]
[PlyCount "67"]
[EventDate "2019.06.07"]
[EventType "swiss"]
[EventRounds "9"]
[EventCountry "GER"]
[SourceTitle "playchess.com"]
[Source "ChessBase"]
[SourceQuality "1"]
[TimeControl "40/4500+30:900+30"]

1. e4 {[%emt 0:00:00]} e5 {[%emt 0:00:00]} 2. Nf3 {[%emt 0:00:00]} Nc6 {[%emt 0:00:00]} 3. Bb5 {[%emt 0:00:00]} Nge7 {[%emt 0:00:00]} 4. Nc3 {[%emt 0:00:00]} g6 {[%emt 0:00:00]} 5. d4 {[%emt 0:00:00]} exd4 {[%emt 0:00:00]} 6. Nd5 {[%emt 0:00:00]} Bg7 {[%emt 0:00:00]} 7. Bg5 {[%emt 0:00:00]} h6 {[%emt 0:00:00]} 8. Bf6 {[%emt 0:00:00]} Bxf6 {[%emt 0:00:00]} 9. Nxf6+ {[%emt 0:00:00]} Kf8 {[%emt 0:00:00]} 10. Qd2 {[%emt 0:00:00]} d6 {[%emt 0:00:00]} 11. O-O-O {[%emt 0:00:00]} a6 {[%emt 0:00:00]} 12. Be2 {[%emt 0:08:12]} Kg7 {[%emt 0:00:00]} 13. Nd5 {[%emt 0:00:48]} Nxd5 {[%emt 0:00:00]} 14. exd5 {[%emt 0:00:09]} Ne5 {[%emt 0:00:00]} 15. Nxd4 {[%emt 0:01:35]} Qf6 {[%emt 0:00:00]} 16. Rdf1 {[%emt 0:04:06]} Re8 {[%emt 0:07:53]} 17. h3 {[%emt 0:04:30]} Nd7 {[%emt 0:02:12]} 18. h4 {[%emt 0:07:02]} Re4 {[%emt 0:05:13]} 19. Nf3 {[%emt 0:04:32]} Ra4 {[%emt 0:09:07]} 20. Kb1 {[%emt 0:06:43]} Nc5 {[%emt 0:00:27]} 21. Qc3 {[%emt 0:06:38]} Qxc3 {[%emt 0:01:30]} 22. bxc3 {[%emt 0:00:58]} Bf5 {[%emt 0:05:44]} 23. Nd4 {[%emt 0:05:36]} Re8 {[%emt 0:01:57]} 24. Re1 {[%emt 0:11:06]} Ne4 {[%emt 0:03:29]} 25. Kb2 {[%emt 0:02:47]} Nxf2 {[%emt 0:07:54]} 26. Rhf1 {[%emt 0:03:15]} Ne4 {[%emt 0:00:28]} 27. Bd3 {[%emt 0:01:34]} Nf6 {[%emt 0:09:34]} 28. Rxe8 {[%emt 0:04:12]} Nxe8 {[%emt 0:00:14]} 29. Nxf5+ {[%emt 0:02:12]} gxf5 {[%emt 0:00:15]} 30. c4 {[%emt 0:00:56]} Nf6 {[%emt 0:02:04]} 31. Kb3 {[%emt 0:00:58]} Ra5 {[%emt 0:02:22]} 32. Bxf5 {[%emt 0:02:20]} b5 {[%emt 0:00:36]} 33. Bd3 {[%emt 0:02:15]} bxc4+ {[%emt 0:01:22]} 34. Bxc4 {[%emt 0:00:18] normal} 0-1

[Event "GER-ch Youth U12 2019"]
[Site "Willingen"]
[Date "2019.06.09"]
[Round "2.2"]
[White "von Mettenheim, Johannes"]
[Black "Sosa Costa, Leonardo"]
[Result "0-1"]
[ECO "E90"]
[WhiteElo "1757"]
[BlackElo "1945"]
[Annotator "NA"]
[PlyCount "60"]
[EventDate "2019.06.07"]
[EventType "swiss"]
[EventRounds "9"]
[EventCountry "GER"]
[SourceTitle "playchess.com"]
[Source "ChessBase"]
[SourceQuality "1"]
[TimeControl "40/4500+30:900+30"]

1. d4 {[%emt 0:00:00]} Nf6 {[%emt 0:00:00]} 2. c4 {[%emt 0:00:00]} g6 {[%emt 0:00:00]} 3. Nc3 {[%emt 0:00:00]} Bg7 {[%emt 0:00:00]} 4. e4 {[%emt 0:00:00]} d6 {[%emt 0:00:00]} 5. Nf3 {[%emt 0:00:00]} O-O {[%emt 0:00:00]} 6. h3 {[%emt 0:00:00]} e5 {[%emt 0:00:00]} 7. d5 {[%emt 0:00:00]} a5 {[%emt 0:00:00]} 8. Be3 {[%emt 0:00:00]} Na6 {[%emt 0:00:00]} 9. Be2 {[%emt 0:00:00]} Nd7 {[%emt 0:00:00]} 10. g4 {[%emt 0:00:00]} Ndc5 {[%emt 0:01:54]} 11. Qc2 {[%emt 0:00:00]} c6 {[%emt 0:06:10]} 12. O-O-O {[%emt 0:02:20]} Qe7 {[%emt 0:04:58]} 13. Rdg1 {[%emt 0:02:38]} Nb4 {[%emt 0:03:22]} 14. Qd1 {[%emt 0:04:05]} cxd5 {[%emt 0:01:14]} 15. Bxc5 {[%emt 0:06:29]} dxc5 {[%emt 0:00:12]} 16. Nxd5 {[%emt 0:02:36]} Nxd5 {[%emt 0:01:24]} 17. cxd5 {[%emt 0:00:10]} h6 {[%emt 0:04:38]} 18. Nd2 {[%emt 0:17:51]} Bd7 {[%emt 0:02:13]} 19. Qb3 {[%emt 0:01:03]} Rfb8 {[%emt 0:06:57]} 20. Bb5 {[%emt 0:02:46]} a4 {[%emt 0:01:22]} 21. Qc4 {[%emt 0:01:17]} Qe8 {[%emt 0:01:05]} 22. Bxd7 {[%emt 0:00:12]} Qxd7 {[%emt 0:00:03]} 23. Kb1 {[%emt 0:00:36]} Rc8 {[%emt 0:00:38]} 24. Qc2 {[%emt 0:03:17]} b5 {[%emt 0:01:18]} 25. Ka1 {[%emt 0:06:56]} c4 {[%emt 0:02:11]} 26. Rc1 {[%emt 0:03:46]} Ra7 {[%emt 0:04:33]} 27. Qc3 {[%emt 0:10:24]} Qd6 {[%emt 0:03:56]} 28. a3 {[%emt 0:01:12]} Qb8 {[%emt 0:05:35]} 29. Nf3 {[%emt 0:02:32]} Rb7 {[%emt 0:01:22]} 30. Qa5 {[%emt 0:04:34]} Bf8 {[%emt 0:16:21] normal} 0-1

[Event "GER-ch Youth U12 2019"]
[Site "Willingen"]
[Date "2019.06.09"]
[Round "2.3"]
[White "Zweigait, Leon"]
[Black "Foerster-Yialamas, Lucas"]
[Result "0-1"]
[ECO "A37"]
[WhiteElo "1474"]
[BlackElo "1981"]
[Annotator "NA"]
[PlyCount "36"]
[EventDate "2019.06.07"]
[EventType "swiss"]
[EventRounds "9"]
[EventCountry "GER"]
[SourceTitle "playchess.com"]
[Source "ChessBase"]
[SourceQuality "1"]
[TimeControl "40/4500+30:900+30"]

1. c4 {[%emt 0:00:00]} c5 {[%emt 0:00:00]} 2. g3 {[%emt 0:00:00]} Nc6 {[%emt 0:00:00]} 3. Bg2 {[%emt 0:00:00]} g6 {[%emt 0:00:00]} 4. Nc3 {[%emt 0:00:00]} Bg7 {[%emt 0:00:00]} 5. Nf3 {[%emt 0:00:00]} d6 {[%emt 0:00:00]} 6. a3 {[%emt 0:00:00]} e5 {[%emt 0:00:00]} 7. d3 {[%emt 0:00:00]} Nge7 {[%emt 0:00:00]} 8. b4 {[%emt 0:00:00]} e4 {[%emt 0:00:00]} 9. Nxe4 {[%emt 0:00:00]} Bxa1 {[%emt 0:00:00]} 10. b5 {[%emt 0:00:00]} f5 {[%emt 0:00:00]} 11. Neg5 {[%emt 0:00:00]} Bc3+ {[%emt 0:00:00]} 12. Kf1 {[%emt 0:00:00]} Nd4 {[%emt 0:00:00]} 13. h4 {[%emt 0:00:00]} Nxf3 {[%emt 0:00:00]} 14. Nxf3 {[%emt 0:00:00]} Bf6 {[%emt 0:00:00]} 15. a4 {[%emt 0:00:00]} a6 {[%emt 0:00:00]} 16. Bd2 {[%emt 0:00:00]} axb5 {[%emt 0:00:00]} 17. cxb5 {[%emt 0:00:00]} Be6 {[%emt 0:00:00]} 18. Bg5 {[%emt 0:00:00]} Nd5 {normal} 0-1

[Event "GER-ch Youth U12 2019"]
[Site "Willingen"]
[Date "2019.06.09"]
[Round "2.4"]
[White "Metzdorf, Matteo"]
[Black "Schwartz, Oliver"]
[Result "1/2-1/2"]
[ECO "B39"]
[WhiteElo "1859"]
[BlackElo "1616"]
[Annotator "NA"]
[PlyCount "26"]
[EventDate "2019.06.07"]
[EventType "swiss"]
[EventRounds "9"]
[EventCountry "GER"]
[SourceTitle "playchess.com"]
[Source "ChessBase"]
[SourceQuality "1"]
[TimeControl "40/4500+30:900+30"]

1. e4 {[%emt 0:00:00]} c5 {[%emt 0:00:00]} 2. Nf3 {[%emt 0:00:00]} Nc6 {[%emt 0:00:00]} 3. d4 {[%emt 0:00:00]} cxd4 {[%emt 0:00:00]} 4. Nxd4 {[%emt 0:00:00]} g6 {[%emt 0:00:00]} 5. c4 {[%emt 0:00:00]} Bg7 {[%emt 0:00:00]} 6. Be3 {[%emt 0:00:00]} Nf6 {[%emt 0:00:00]} 7. Nc3 {[%emt 0:00:00]} Ng4 {[%emt 0:00:00]} 8. Qxg4 {[%emt 0:00:00]} Nxd4 {[%emt 0:00:00]} 9. Qd1 {[%emt 0:00:00]} e5 {[%emt 0:00:00]} 10. Nb5 {[%emt 0:07:26]} Qb6 {[%emt 0:00:00]} 11. b4 {[%emt 0:15:26]} d6 {[%emt 0:00:00]} 12. Rb1 {[%emt 0:03:47]} O-O {[%emt 0:00:30]} 13. Bd3 {[%emt 0:03:10]} Be6 {[%emt 0:02:40] normal} 1/2-1/2

[Event "GER-ch Youth U12 2019"]
[Site "Willingen"]
[Date "2019.06.09"]
[Round "2.5"]
[White "Mueller, Maximilian"]
[Black "Hecht, Jonas Christian"]
[Result "1-0"]
[ECO "C42"]
[WhiteElo "1606"]
[BlackElo "1726"]
[Annotator "NA"]
[PlyCount "28"]
[EventDate "2019.06.07"]
[EventType "swiss"]
[EventRounds "9"]
[EventCountry "GER"]
[SourceTitle "playchess.com"]
[Source "ChessBase"]
[SourceQuality "1"]
[TimeControl "40/4500+30:900+30"]

1. e4 {[%emt 0:00:00]} e5 {[%emt 0:00:00]} 2. Nf3 {[%emt 0:00:00]} Nf6 {[%emt 0:00:00]} 3. Nxe5 {[%emt 0:00:00]} d6 {[%emt 0:00:00]} 4. Nf3 {[%emt 0:00:00]} Nxe4 {[%emt 0:00:00]} 5. d4 {[%emt 0:00:00]} d5 {[%emt 0:00:00]} 6. Bd3 {[%emt 0:00:00]} Bd6 {[%emt 0:00:00]} 7. Nbd2 {[%emt 0:00:00]} Nxd2 {[%emt 0:00:00]} 8. Bxd2 {[%emt 0:00:00]} h6 {[%emt 0:00:00]} 9. O-O {[%emt 0:00:00]} O-O {[%emt 0:00:00]} 10. Ne5 {[%emt 0:00:00]} c5 {[%emt 0:00:00]} 11. c3 {[%emt 0:00:00]} Bxe5 {[%emt 0:06:26]} 12. dxe5 {[%emt 0:00:00]} Nc6 {[%emt 0:00:32]} 13. Qh5 {[%emt 0:05:35]} Re8 {[%emt 0:02:10]} 14. Bf4 {[%emt 0:14:36]} Qb6 {[%emt 0:11:47] normal} 1-0

[Event "GER-ch Youth U12 2019"]
[Site "Willingen"]
[Date "2019.06.09"]
[Round "2.6"]
[White "Moeller, Maurin"]
[Black "Kluehs, Gustaf"]
[Result "0-1"]
[ECO "C07"]
[WhiteElo "1686"]
[BlackElo "1705"]
[Annotator "NA"]
[PlyCount "66"]
[EventDate "2019.06.07"]
[EventType "swiss"]
[EventRounds "9"]
[EventCountry "GER"]
[SourceTitle "playchess.com"]
[Source "ChessBase"]
[SourceQuality "1"]
[TimeControl "40/4500+30:900+30"]

1. e4 {[%emt 0:00:00]} e6 {[%emt 0:00:00]} 2. d4 {[%emt 0:00:00]} d5 {[%emt 0:00:00]} 3. Nd2 {[%emt 0:00:00]} c5 {[%emt 0:00:00]} 4. Ngf3 {[%emt 0:00:00]} Nc6 {[%emt 0:00:00]} 5. exd5 {[%emt 0:00:00]} Qxd5 {[%emt 0:00:00]} 6. Bc4 {[%emt 0:00:00]} Qd8 {[%emt 0:00:00]} 7. dxc5 {[%emt 0:00:00]} Bxc5 {[%emt 0:00:00]} 8. O-O {[%emt 0:00:00]} Nf6 {[%emt 0:00:00]} 9. Nb3 {[%emt 0:00:00]} Qxd1 {[%emt 0:00:00]} 10. Rxd1 {[%emt 0:00:00]} Bb6 {[%emt 0:00:00]} 11. Bg5 {[%emt 0:06:14]} Ng4 {[%emt 0:00:00]} 12. Bh4 {[%emt 0:00:28]} O-O {[%emt 0:00:00]} 13. h3 {[%emt 0:02:42]} Nge5 {[%emt 0:00:00]} 14. Nxe5 {[%emt 0:00:53]} Nxe5 {[%emt 0:00:00]} 15. Be2 {[%emt 0:03:45]} Ng6 {[%emt 0:00:00]} 16. Bg3 {[%emt 0:00:23]} e5 {[%emt 0:00:34]} 17. Bf3 {[%emt 0:09:37]} Bf5 {[%emt 0:09:58]} 18. Bxb7 {[%emt 0:04:01]} Rab8 {[%emt 0:00:34]} 19. Bd5 {[%emt 0:07:15]} Bxc2 {[%emt 0:01:03]} 20. Rd2 {[%emt 0:02:09]} Bf5 {[%emt 0:00:49]} 21. Re1 {[%emt 0:00:37]} Rfe8 {[%emt 0:01:34]} 22. Rde2 {[%emt 0:14:46]} Rbd8 {[%emt 0:02:54]} 23. Bc4 {[%emt 0:04:48]} e4 {[%emt 0:05:44]} 24. a3 {[%emt 0:10:01]} h5 {[%emt 0:22:02]} 25. h4 {[%emt 0:05:58]} e3 {[%emt 0:09:35]} 26. fxe3 {[%emt 0:02:25]} Bg4 {[%emt 0:00:34]} 27. Rc2 {[%emt 0:01:08]} Rxe3 {[%emt 0:02:16]} 28. Rxe3 {[%emt 0:01:23]} Bxe3+ {[%emt 0:00:27]} 29. Kh2 {[%emt 0:00:52]} Rd1 {[%emt 0:02:22]} 30. Be2 {[%emt 0:00:57]} Bg1+ {[%emt 0:01:11]} 31. Kh1 {[%emt 0:00:10]} Bxe2 {[%emt 0:00:05]} 32. Rxe2 {[%emt 0:00:13]} Bf2+ {[%emt 0:00:15]} 33. Kh2 {[%emt 0:00:08]} Bxg3+ {[%emt 0:00:04] normal} 0-1